bitfinex/quotes_BTCUSD_20250526
["timestamp","ask_amount","ask_price","bid_price","bid_amount"]
[1748288687130,0.74619279,108940.0,108930.0,1.77724916]
[1748288687287,0.76319279,108940.0,108930.0,1.77824916]
[1748288688096,0.76219279,108940.0,108930.0,1.78742919]
[1748288688477,0.76219279,108940.0,108930.0,1.78842919]
[1748288688684,0.76219279,108940.0,108930.0,1.78742919]
[1748288689015,0.76219279,108940.0,108930.0,1.78942919]
[1748288689650,0.31005737,108940.0,108930.0,1.82388867]
[1748288689866,0.31005729,108940.0,108930.0,1.82388867]
[1748288690256,0.01835729,108940.0,108930.0,1.82388867]
[1748288690393,0.01835729,108940.0,108930.0,1.92388867]
[1748288690623,0.02753606,108940.0,108930.0,1.92388867]
[1748288691489,0.01835729,108940.0,108930.0,1.92388867]
[1748288691700,0.01835729,108940.0,108930.0,1.95310137]
[1748288692253,0.03671508,108940.0,108930.0,1.95310137]
[1748288692652,0.02753606,108940.0,108930.0,1.95310137]
[1748288692926,0.036715,108940.0,108930.0,1.95310137]
[1748288693389,0.49062997,108960.0,108950.0,0.52357044]
[1748288693558,0.43140041,108960.0,108950.0,1.78757449]
[1748288693890,0.32535485,108960.0,108950.0,1.8047484]
[1748288694012,0.52726312,108960.0,108950.0,1.8047484]
[1748288694489,0.53644079,108960.0,108950.0,1.80474857]
[1748288694991,0.5272637,108960.0,108950.0,1.80574857]
[1748288695167,0.51808636,108960.0,108950.0,1.79657047]
[1748288695572,0.51808636,108960.0,108950.0,1.79657055]
[1748288695736,0.49973126,108960.0,108950.0,1.78739229]
[1748288695942,0.49973126,108960.0,108950.0,1.79657064]
[1748288696517,0.51613126,108960.0,108950.0,1.79657064]
[1748288697027,0.50695359,108960.0,108950.0,1.77821386]
[1748288697232,0.50695359,108960.0,108950.0,1.78839221]
[1748288698818,0.50695359,108960.0,108950.0,1.80302124]
[1748288699230,0.21525359,108960.0,108950.0,1.80302124]
[1748288700520,0.21525359,108960.0,108950.0,1.79384289]
[1748288701839,0.30479915,108960.0,108950.0,1.39355593]
[1748288702055,0.30479915,108960.0,108950.0,1.26630993]
[1748288702268,0.30479915,108960.0,108950.0,1.27727864]
[1748288702782,0.30479915,108960.0,108950.0,0.16146465]
[1748288703006,0.30479915,108960.0,108950.0,0.04477165]
[1748288703690,0.30479915,108960.0,108950.0,0.38477165]
[1748288703914,0.30479915,108960.0,108950.0,0.01917391]
[1748288704148,0.91979724,108960.0,108950.0,0.01917391]
[1748288704375,0.36832225,108960.0,108950.0,0.01917391]
[1748288705269,0.30479915,108960.0,108950.0,0.01917391]
[1748288705897,0.59649915,108960.0,108950.0,0.01917391]
[1748288708705,0.85627414,108960.0,108950.0,0.01917391]
[1748288708921,0.30479915,108960.0,108950.0,0.01917391]
[1748288709329,0.30479915,108960.0,108950.0,0.01817391]
[1748288709703,0.30579915,108960.0,108950.0,0.01817391]
[1748288710347,0.30579915,108960.0,108950.0,0.01717391]
[1748288710667,0.30679915,108960.0,108950.0,0.01717391]
[1748288711102,0.30679915,108960.0,108950.0,0.5686489]
[1748288711327,0.45359915,108960.0,108950.0,0.5686489]
[1748288711556,0.45359915,108960.0,108950.0,0.01717391]
[1748288714661,0.30679915,108960.0,108950.0,0.9086489]
[1748288714876,0.45359915,108960.0,108950.0,0.9086489]
[1748288715360,0.30679915,108960.0,108950.0,0.9086489]
[1748288715507,0.45359915,108960.0,108950.0,0.9086489]
[1748288715941,0.45359915,108960.0,108950.0,0.35717391]
[1748288716283,0.30679915,108960.0,108950.0,0.35717391]
[1748288716483,0.45359915,108960.0,108950.0,0.35717391]
[1748288716707,0.45359915,108960.0,108950.0,0.9086489]
[1748288717770,0.30679915,108960.0,108950.0,0.9086489]
[1748288717914,0.45359915,108960.0,108950.0,0.9086489]
[1748288722921,0.45359915,108960.0,108950.0,1.1475169]
[1748288724172,0.45359915,108960.0,108950.0,1.15848561]
[1748288725779,0.45359915,108960.0,108950.0,1.14805761]
[1748288726303,0.45359915,108960.0,108950.0,1.13488061]
[1748288726506,0.45359915,108960.0,108950.0,1.07175761]
[1748288728488,0.30679915,108960.0,108950.0,1.07175761]
[1748288728677,0.45359915,108960.0,108950.0,1.07175761]
[1748288729736,0.29039915,108960.0,108950.0,1.07175761]
[1748288729923,0.27509915,108960.0,108950.0,1.08805761]
[1748288730141,0.42185915,108960.0,108950.0,1.08805761]
[1748288730899,0.42085915,108960.0,108950.0,1.08805761]
[1748288731118,0.43921424,108960.0,108950.0,1.29610648]
[1748288731357,0.29145424,108960.0,108950.0,1.30349404]
[1748288731685,0.44739133,108960.0,108950.0,1.30894506]
[1748288732097,0.44739133,108960.0,108950.0,1.30994506]
[1748288732297,0.42903674,108960.0,108950.0,1.09371793]
[1748288732480,0.44403674,108960.0,108950.0,1.07741793]
[1748288733410,0.44403674,108960.0,108950.0,0.03380294]
[1748288733411,0.45983674,108960.0,108950.0,0.03380294]
[1748288733662,0.45983674,108960.0,108950.0,0.37380294]
[1748288734516,0.45983674,108960.0,108950.0,0.35917391]
[1748288736702,0.45983674,108960.0,108950.0,0.9106489]
[1748288737264,0.44403674,108960.0,108950.0,0.9106489]
[1748288737678,0.44403674,108960.0,108950.0,0.92162269]
[1748288737914,0.44403674,108960.0,108950.0,1.04629269]
[1748288739811,0.44403674,108960.0,108950.0,1.06092172]
[1748288740245,0.28227674,108960.0,108950.0,1.07602172]
[1748288740454,0.42903674,108960.0,108950.0,1.07602172]
[1748288740866,0.42903674,108960.0,108950.0,1.06504793]
[1748288741502,0.28227674,108960.0,108950.0,1.06504793]
[1748288741953,0.42903674,108960.0,108950.0,1.08054793]
[1748288743651,0.42903674,108960.0,108950.0,1.06504793]
[1748288744097,0.42903674,108960.0,108950.0,1.0504189]
[1748288747295,0.42903674,108960.0,108950.0,1.06505424]
[1748288748569,0.42903674,108960.0,108950.0,1.25780311]
[1748288749056,0.41985915,108960.0,108950.0,1.25780311]
[1748288749849,0.41985915,108960.0,108950.0,1.24316777]
[1748288750270,0.41985915,108960.0,108950.0,1.0504189]
[1748288750495,0.45165915,108960.0,108950.0,1.0353189]
[1748288751415,0.43625915,108960.0,108950.0,1.0353189]
[1748288752181,0.43625915,108960.0,108950.0,1.049953]
[1748288753512,0.43625915,108960.0,108950.0,1.0353189]
[1748288761716,0.45145915,108960.0,108950.0,1.0586299]
[1748288761938,0.45145915,108960.0,108950.0,1.0456379]
[1748288762864,0.45145915,108960.0,108950.0,1.05662105]
[1748288763331,0.43625915,108960.0,108950.0,1.05662105]
[1748288764526,0.009177,108960.0,108950.0,1.83570102]
[1748288764742,0.00858726,108970.0,108960.0,0.56758544]
[1748288765021,0.15597456,108990.0,108980.0,0.21104687]
[1748288765221,0.08958556,108990.0,108980.0,1.45433786]
[1748288765409,0.00936408,108990.0,108980.0,1.45433786]
[1748288765550,0.17447362,108990.0,108980.0,1.48801186]
[1748288765754,0.17447353,108990.0,108980.0,1.48801186]
[1748288766127,0.36715175,108990.0,108980.0,1.49718726]
[1748288766562,0.3763269,108990.0,108980.0,1.48803843]
[1748288766784,0.3763269,108990.0,108980.0,1.497214]
[1748288766997,0.36715242,108990.0,108980.0,1.497214]
[1748288767196,0.35797778,108990.0,108980.0,1.52060118]
[1748288767343,0.35897778,108990.0,108980.0,1.52060118]
[1748288767756,0.35997778,108990.0,108980.0,1.52060118]
[1748288767961,0.0021896,108990.0,108980.0,1.86060101]
[1748288768165,0.0021896,108990.0,108980.0,2.711156]
[1748288768370,0.04195146,109000.0,108990.0,0.5811275]
[1748288768568,0.06029881,109000.0,108990.0,2.35989348]
[1748288768825,0.05112501,109000.0,108990.0,2.37706739]
[1748288768957,0.04195146,109000.0,108990.0,2.37706739]
[1748288769182,0.04195146,109000.0,108990.0,2.39160824]
[1748288769640,0.04195146,109000.0,108990.0,2.40037843]
[1748288770606,0.03004,109010.0,109000.0,0.58110814]
[1748288770811,0.03921271,109010.0,109000.0,2.52117497]
[1748288771020,0.04838559,109010.0,109000.0,2.56169332]
[1748288771427,0.07590531,109010.0,109000.0,2.57526303]
[1748288771653,0.07590531,109010.0,109000.0,2.57726303]
[1748288771860,0.04838559,109010.0,109000.0,2.57726303]
[1748288772218,0.05755872,109010.0,109000.0,2.58026303]
[1748288772580,0.05755863,109010.0,109000.0,2.58026303]
[1748288772792,0.02755863,109010.0,109000.0,2.58026303]
[1748288774519,0.02755863,109010.0,109000.0,2.57760632]
[1748288774728,0.01838559,109010.0,109000.0,2.57760632]
[1748288774938,0.00921271,109010.0,109000.0,2.57760632]
[1748288775162,0.01838559,109010.0,109000.0,2.57760632]
[1748288775382,0.02755855,109010.0,109000.0,2.57760632]
[1748288775609,0.01838559,109010.0,109000.0,2.57760632]
[1748288775829,0.01838559,109010.0,109000.0,2.56303207]
[1748288776076,0.02755855,109010.0,109000.0,2.56303207]
[1748288776883,0.03673168,109010.0,109000.0,1.46008209]
[1748288777098,0.03673168,109010.0,109000.0,2.56303207]
[1748288777708,0.02755855,109010.0,109000.0,2.56303207]
[1748288777916,0.03673176,109010.0,109000.0,2.56303207]
[1748288778135,0.22020225,109010.0,109000.0,2.3775575]
[1748288778343,0.03673285,109010.0,109000.0,2.68573122]
[1748288778544,0.03673285,109010.0,109000.0,2.53901122]
[1748288778748,0.22020225,109010.0,109000.0,2.68573122]
[1748288778963,0.03673285,109010.0,109000.0,2.68573122]
[1748288779525,0.01838617,109010.0,109000.0,2.6857313]
[1748288779731,0.01838617,109010.0,109000.0,2.69490502]
[1748288779955,0.02755888,109010.0,109000.0,2.69490502]
[1748288780188,0.22020158,109010.0,109000.0,2.6857313]
[1748288780394,0.22937505,109010.0,109000.0,2.6857313]
[1748288780555,0.22020234,109010.0,109000.0,2.6857313]
[1748288782601,0.21102938,109010.0,109000.0,2.6765175]
[1748288784472,0.21102938,109010.0,109000.0,2.66734353]
[1748288784648,0.20185617,109010.0,109000.0,2.52983767]
[1748288784850,0.20185617,109010.0,109000.0,2.67651767]
[1748288785067,0.19268287,109010.0,109000.0,2.67651758]
[1748288786956,0.20185608,109010.0,109000.0,2.69301758]
[1748288787098,0.20185608,109010.0,109000.0,2.70219155]
[1748288787301,0.01838668,109010.0,109000.0,2.56468544]
[1748288787514,0.20185608,109010.0,109000.0,2.56468544]
[1748288788403,0.20185608,109010.0,109000.0,2.58843349]
[1748288788624,0.20185608,109010.0,109000.0,1.46898351]
[1748288788841,0.20185608,109010.0,109000.0,2.32747733]
[1748288789034,0.20918287,109010.0,109000.0,2.32743733]
[1748288789489,0.20918287,109010.0,109000.0,2.50001056]
[1748288789680,0.20918287,109010.0,109000.0,2.51835909]
[1748288790516,0.20918287,109010.0,109000.0,2.52753323]
[1748288790729,0.31372843,109010.0,109000.0,1.30471534]
[1748288791812,0.60542843,109010.0,109000.0,0.40959413]
[1748288792045,0.60542843,109010.0,109000.0,0.04187213]
[1748288792501,0.60542843,109010.0,109000.0,0.59334712]
[1748288792710,0.60542843,109010.0,109000.0,0.57617321]
[1748288793157,0.60542843,109010.0,109000.0,0.01969822]
[1748288793383,0.22476037,109000.0,108990.0,0.55147499]
[1748288793601,0.46098593,109000.0,108990.0,1.14691199]
[1748288793821,0.46098593,109000.0,108990.0,1.13315599]
[1748288795377,0.46098593,109000.0,108990.0,1.13515599]
[1748288795926,0.46098593,109000.0,108990.0,1.14608402]
[1748288796126,0.46098593,109000.0,108990.0,1.14908402]
[1748288796789,0.60600593,109000.0,108990.0,1.14908402]
[1748288796962,0.75268593,109000.0,108990.0,1.14908402]
[1748288799227,0.60600593,109000.0,108990.0,1.14908402]
[1748288799620,0.75268593,109000.0,108990.0,1.14908402]
[1748288800545,0.60600593,109000.0,108990.0,1.14908402]
[1748288800804,0.58950593,109000.0,108990.0,1.14908402]
[1748288801014,0.73618593,109000.0,108990.0,1.14908402]
[1748288801860,0.75268593,109000.0,108990.0,1.14908402]
[1748288802287,0.75268593,109000.0,108990.0,0.91060102]
[1748288802508,0.75268593,109000.0,108990.0,0.90010102]
[1748288802726,0.75268593,109000.0,108990.0,0.29583803]
[1748288802946,0.75268593,109000.0,108990.0,0.84731302]
[1748288803296,0.75268593,109000.0,108990.0,0.83638499]
[1748288804004,0.75268593,109000.0,108990.0,0.83138499]
[1748288804213,0.75468593,109000.0,108990.0,0.83138499]
[1748288804675,0.75468593,109000.0,108990.0,0.27991]
[1748288804861,0.75468593,109000.0,108990.0,0.83138499]
[1748288805489,0.75468593,109000.0,108990.0,0.55147499]
[1748288808709,0.46298593,109000.0,108990.0,0.55147499]
[1748288810770,0.31630593,109000.0,108990.0,0.68464199]
[1748288810984,0.46302593,109000.0,108990.0,0.68464199]
[1748288811959,0.46302593,109000.0,108990.0,0.55147499]
[1748288813219,0.46302593,109000.0,108990.0,0.68425199]
[1748288813464,0.46302593,109000.0,108990.0,0.55147499]
[1748288816186,0.46302593,109000.0,108990.0,0.56240302]
[1748288816592,0.46302593,109000.0,108990.0,0.72475402]
[1748288816796,0.31630593,109000.0,108990.0,0.72475402]
[1748288817007,0.46302593,109000.0,108990.0,0.72475402]
[1748288819022,0.46302593,109000.0,108990.0,0.56240302]
[1748288819920,0.46302593,109000.0,108990.0,0.01092803]
[1748288820340,0.46302593,109000.0,108990.0,0.56240302]
[1748288822016,0.46302593,109000.0,108990.0,0.57697727]
[1748288825198,0.47161693,109000.0,108990.0,0.57697727]
[1748288825412,0.47161693,109000.0,108990.0,0.56240302]
[1748288828379,0.47161693,109000.0,108990.0,0.01092803]
[1748288828621,0.53712956,109000.0,108990.0,0.01092803]
[1748288828843,0.47161693,109000.0,108990.0,0.01092803]
[1748288829541,0.62433693,109000.0,108990.0,0.01092803]
[1748288829759,0.62433693,109000.0,108990.0,0.56240302]
[1748288829964,0.62433693,109000.0,108990.0,0.55147499]
[1748288831207,0.62433693,109000.0,108990.0,0.56240302]
[1748288831992,0.47161693,109000.0,108990.0,0.56240302]
[1748288833429,0.32489693,109000.0,108990.0,0.56240302]
[1748288833634,0.30839693,109000.0,108990.0,0.56240302]
[1748288833854,0.45511693,109000.0,108990.0,0.56240302]
[1748288836126,0.30839693,109000.0,108990.0,0.56240302]
[1748288836334,0.45511693,109000.0,108990.0,0.56240302]
[1748288836546,0.45511693,109000.0,108990.0,0.57119122]
[1748288846376,0.30839693,109000.0,108990.0,0.57119122]
[1748288846613,0.45511693,109000.0,108990.0,0.57119122]
[1748288847464,0.30839693,109000.0,108990.0,0.57119122]
[1748288847701,0.29279693,109000.0,108990.0,0.58749122]
[1748288847912,0.30197098,109000.0,108990.0,1.81208544]
[1748288848121,0.44869098,109000.0,108990.0,1.81208544]
[1748288848334,0.28362279,109000.0,108990.0,1.81208544]
[1748288848543,0.42175179,109000.0,108990.0,1.61940722]
[1748288848749,0.42175179,109000.0,108990.0,1.81208544]
[1748288849805,0.27503179,109000.0,108990.0,1.80291029]
[1748288850006,0.42175179,109000.0,108990.0,1.80291029]
[1748288850450,0.42175179,109000.0,108990.0,1.61940722]
[1748288850685,0.42175179,109000.0,108990.0,1.81208544]
[1748288850895,0.27503179,109000.0,108990.0,1.81208544]
[1748288851075,0.42175179,109000.0,108990.0,1.8212605]
[1748288853305,0.42175179,109000.0,108990.0,1.81208544]
[1748288854188,0.42175179,109000.0,108990.0,1.80115741]
[1748288854399,0.27503179,109000.0,108990.0,1.80115741]
[1748288854611,0.42175179,109000.0,108990.0,1.81033239]
[1748288855454,0.27503179,109000.0,108990.0,1.81033239]
[1748288855671,0.42175179,109000.0,108990.0,1.8195072]
[1748288855881,0.42175179,109000.0,108990.0,1.81033239]
[1748288857878,0.43092593,109000.0,108990.0,1.81950712]
[1748288858098,0.43092593,109000.0,108990.0,1.81950729]
[1748288858314,0.43092593,109000.0,108990.0,1.82868202]
[1748288858741,0.43092593,109000.0,108990.0,1.81033239]
[1748288859860,0.28420593,109000.0,108990.0,1.81033239]
[1748288860170,0.43092593,109000.0,108990.0,1.81033239]
[1748288860882,0.28420593,109000.0,108990.0,1.81033239]
[1748288861094,0.42175179,109000.0,108990.0,1.80115741]
[1748288861299,0.42175179,109000.0,108990.0,1.79423247]
[1748288861514,0.42175179,109000.0,108990.0,1.80340745]
[1748288862151,0.42175179,109000.0,108990.0,1.81258235]
[1748288862337,0.43092593,109000.0,108990.0,1.83715708]
[1748288862684,0.43092593,109000.0,108990.0,1.84258876]
[1748288862921,0.43092593,109000.0,108990.0,1.83341386]
[1748288863704,0.43092593,109000.0,108990.0,1.84258876]
[1748288864527,0.28420593,109000.0,108990.0,1.84258876]
[1748288864740,0.43092593,109000.0,108990.0,1.84258876]
[1748288865855,0.43092593,109000.0,108990.0,1.82718876]
[1748288867378,0.44009982,109000.0,108990.0,1.83636298]
[1748288867562,0.44927413,109000.0,108990.0,1.83636298]
[1748288868306,0.44927413,109000.0,108990.0,1.85266298]
[1748288869246,0.30255413,109000.0,108990.0,1.85266298]
[1748288869451,0.44927413,109000.0,108990.0,1.85266298]
[1748288869664,0.44927413,109000.0,108990.0,1.82718842]
[1748288870087,0.44927413,109000.0,108990.0,1.82175674]
[1748288873739,0.44927413,109000.0,108990.0,1.27028175]
[1748288874010,0.46507413,109000.0,108990.0,1.7779323]
[1748288874533,0.46507413,109000.0,108990.0,1.76875732]
[1748288875040,0.4467261,109000.0,108990.0,1.75958226]
[1748288875689,0.4467261,109000.0,108990.0,1.76875741]
[1748288875886,0.4467261,109000.0,108990.0,1.75996921]
[1748288877087,0.4309261,109000.0,108990.0,1.76914411]
[1748288877268,0.20383459,109000.0,108990.0,1.78564411]
[1748288877506,0.35972839,109000.0,108990.0,1.81031892]
[1748288877906,0.35972839,109000.0,108990.0,1.79481892]
[1748288878320,0.34138054,109000.0,108990.0,1.78564419]
[1748288878848,0.34138054,109000.0,108990.0,1.77646921]
[1748288879057,0.43705179,109000.0,108990.0,1.015816]
[1748288879277,0.45275179,109000.0,108990.0,1.41998299]
[1748288879887,0.45275179,109000.0,108990.0,0.55147499]
[1748288880091,0.45275179,109000.0,108990.0,0.65432999]
[1748288880299,0.45275179,109000.0,108990.0,0.70599599]
[1748288880499,0.45275179,109000.0,108990.0,0.69469599]
[1748288880759,0.45275179,109000.0,108990.0,0.55147499]
[1748288880956,0.45275179,109000.0,108990.0,0.56612235]
[1748288881726,0.45275179,109000.0,108990.0,0.66953235]
[1748288882164,0.45275179,109000.0,108990.0,0.01464736]
[1748288883434,0.19267805,108990.0,108980.0,0.90612235]
[1748288883648,0.31372361,108990.0,108980.0,1.22324135]
[1748288884309,0.31372361,108990.0,108980.0,1.10609135]
[1748288884727,0.31372361,108990.0,108980.0,1.10709135]
[1748288885073,0.31372361,108990.0,108980.0,1.10909135]
[1748288887758,0.31372361,108990.0,108980.0,1.06307035]
[1748288887975,0.46044361,108990.0,108980.0,1.05203635]
[1748288888839,0.46044361,108990.0,108980.0,1.06300094]
[1748288890266,0.44504361,108990.0,108980.0,1.06300094]
[1748288891312,0.73674361,108990.0,108980.0,1.06300094]
[1748288896777,0.59002361,108990.0,108980.0,1.06300094]
[1748288896995,0.58309851,108990.0,108980.0,1.28077224]
[1748288897194,0.73899315,108990.0,108980.0,1.29697224]
[1748288897491,0.73899315,108990.0,108980.0,1.27159667]
[1748288898020,0.72981851,108990.0,108980.0,1.95857667]
[1748288898656,0.72981851,108990.0,108980.0,1.95678773]
[1748288899155,0.72981851,108990.0,108980.0,1.94761208]
[1748288899440,0.72064361,108990.0,108980.0,1.94761208]
[1748288900064,0.72064361,108990.0,108980.0,1.25959308]
[1748288900767,0.72706863,108990.0,108980.0,1.05099735]
[1748288900995,0.74206863,108990.0,108980.0,1.05099735]
[1748288908481,0.59534863,108990.0,108980.0,1.05099735]
[1748288908698,0.74206863,108990.0,108980.0,1.05099735]
[1748288910504,0.59534863,108990.0,108980.0,1.03634999]
[1748288910709,0.71146863,108990.0,108980.0,1.05234999]
[1748288911573,0.72706863,108990.0,108980.0,1.03634999]
[1748288911776,0.74346863,108990.0,108980.0,1.03634999]
[1748288914737,0.74346863,108990.0,108980.0,1.05099687]
[1748288916151,0.74346863,108990.0,108980.0,1.03634999]
[1748288920033,0.74346863,108990.0,108980.0,1.31169394]
[1748288920462,0.74346863,108990.0,108980.0,1.16877994]
[1748288920664,0.74346863,108990.0,108980.0,1.28113694]
[1748288921753,0.74346863,108990.0,108980.0,1.29578623]
[1748288922428,0.74346863,108990.0,108980.0,0.96333523]
[1748288922643,0.74346863,108990.0,108980.0,0.95203523]
[1748288926330,0.74346863,108990.0,108980.0,0.43053926]
[1748288926745,0.45176863,108990.0,108980.0,0.43053926]
[1748288926948,0.54129014,108990.0,108980.0,0.43053926]
[1748288927587,0.45176863,108990.0,108980.0,0.43053926]
[1748288927758,0.45176863,108990.0,108980.0,0.4415238]
[1748288928000,0.45176863,108990.0,108980.0,0.02863383]
[1748288928461,1.29208942,108990.0,108980.0,0.02863383]
[1748288928669,1.69208942,108990.0,108980.0,0.01203383]
[1748288928902,0.20190835,108960.0,108950.0,0.02928841]
[1748288929081,0.20190835,108960.0,108940.0,0.01098647]
[1748288929082,0.22444879,108950.0,108940.0,0.01098647]
[1748288929326,0.31399435,108950.0,108940.0,0.01113607]
[1748288930289,0.31399435,108950.0,108940.0,0.0001496]
[1748288930514,0.3342849,108950.0,108940.0,0.0001496]
[1748288930947,0.3352849,108950.0,108940.0,0.0001496]
[1748288931585,0.3362849,108950.0,108940.0,0.0001496]
[1748288932963,0.22326648,108940.0,108930.0,0.09947445]
[1748288933168,0.45957204,108940.0,108930.0,0.09947445]
[1748288933366,0.53530641,108940.0,108930.0,0.09947445]
[1748288933579,0.53530641,108940.0,108930.0,0.09639204]
[1748288934205,0.53530641,108940.0,108930.0,0.09305557]
[1748288934611,0.53530641,108940.0,108930.0,0.09505557]
[1748288934843,0.53530641,108940.0,108930.0,0.08987448]
[1748288935419,0.53530641,108940.0,108930.0,0.08762049]
[1748288936673,0.46876311,108940.0,108930.0,0.08762049]
[1748288936896,0.31281204,108940.0,108930.0,0.08762049]
[1748288937158,0.29149115,108940.0,108930.0,1.48133253]
[1748288937409,0.43825115,108940.0,108930.0,1.48133244]
[1748288937660,0.43825115,108940.0,108930.0,1.49051256]
[1748288937877,0.43825115,108940.0,108930.0,1.48133261]
[1748288938090,0.42907204,108940.0,108930.0,1.49051273]
[1748288939517,0.42907204,108940.0,108930.0,1.49969268]
[1748288940754,0.0987245,108940.0,108930.0,1.50887246]
[1748288940965,0.27302166,108940.0,108930.0,1.51805207]
[1748288941482,0.56472166,108940.0,108930.0,1.51805207]
[1748288942047,0.74830895,108940.0,108930.0,1.49969268]
[1748288942264,0.74830962,108940.0,108930.0,1.49969268]
[1748288944514,0.74830962,108940.0,108930.0,1.49051273]
[1748288945113,0.72995149,108940.0,108930.0,1.49051273]
[1748288945317,0.72995149,108940.0,108930.0,1.49969276]
[1748288945448,0.72995149,108940.0,108930.0,1.50887271]
[1748288945865,0.72995149,108940.0,108930.0,1.49051273]
[1748288946083,0.72995149,108940.0,108930.0,1.49969276]
[1748288946330,0.30087877,108940.0,108930.0,1.51805224]
[1748288946547,0.20192722,108950.0,108940.0,0.57434559]
[1748288946762,0.00917776,108950.0,108940.0,1.77809614]
[1748288946965,0.03671214,108950.0,108940.0,2.32925192]
[1748288947173,0.03671205,108950.0,108940.0,1.77809614]
[1748288947379,0.18351205,108950.0,108940.0,1.81059614]
[1748288947585,0.36708316,108950.0,108940.0,1.59947178]
[1748288947793,0.34872713,108950.0,108940.0,1.79323835]
[1748288948356,0.34972713,108950.0,108940.0,1.79323835]
[1748288948925,0.34872713,108950.0,108940.0,1.80241754]
[1748288949074,0.34872713,108950.0,108940.0,1.80341754]
[1748288950272,0.34872713,108950.0,108940.0,1.81259656]
[1748288950504,0.34872713,108950.0,108940.0,1.8217755]
[1748288950887,0.34872713,108950.0,108940.0,1.81259656]
[1748288954498,0.16515627,108950.0,108940.0,1.81259656]
[1748288954717,0.1835123,108950.0,108940.0,1.82177533]
[1748288955869,0.01835577,108950.0,108940.0,1.82177533]
[1748288956084,0.18347222,108950.0,108940.0,1.82177533]
[1748288956534,0.36704266,108950.0,108940.0,1.80341754]
[1748288956761,0.35786541,108950.0,108940.0,1.79423835]
[1748288956982,0.34868731,108950.0,108940.0,1.60147178]
[1748288957198,0.43823287,108950.0,108940.0,1.56897178]
[1748288958926,0.45373287,108950.0,108940.0,1.16416085]
[1748288966015,0.45373287,108950.0,108940.0,1.14954578]
[1748288967092,0.43823287,108950.0,108940.0,1.14954578]
[1748288967761,0.29147287,108950.0,108940.0,1.33313307]
[1748288967983,0.01835636,108950.0,108940.0,1.94312592]
[1748288968210,0.18347255,108950.0,108940.0,1.39197014]
[1748288968421,0.37622142,108950.0,108940.0,1.39197014]
[1748288968630,0.1742942,108950.0,108940.0,1.39197014]
[1748288969067,0.0275342,108950.0,108940.0,1.39197014]
[1748288969494,0.03671255,108950.0,108940.0,1.39197014]
[1748288971686,0.0275342,108950.0,108940.0,1.39197014]
[1748288971893,0.22946159,108950.0,108940.0,1.39197031]
[1748288972103,0.22028375,108950.0,108940.0,1.38279137]
[1748288972308,0.22028375,108950.0,108940.0,1.39197022]
[1748288972460,0.22028375,108950.0,108940.0,1.38279137]
[1748288973268,0.22028375,108950.0,108940.0,1.39197031]
[1748288974523,0.22028375,108950.0,108940.0,1.40114916]
[1748288976226,0.02753479,108950.0,108940.0,1.40114916]
[1748288976634,0.02753479,108950.0,108940.0,1.41032793]
[1748288976868,0.02753479,108950.0,108940.0,1.43961634]
[1748288979248,0.21110523,108950.0,108940.0,1.43961634]
[1748288980292,0.02753479,108950.0,108940.0,1.43961634]
[1748288980501,0.21110523,108950.0,108940.0,1.43961634]
[1748288981471,0.22028375,108950.0,108940.0,1.41207978]
[1748288981683,0.22028375,108950.0,108940.0,1.42125872]
[1748288982106,0.22028375,108950.0,108940.0,1.43043757]
[1748288982615,0.22028375,108950.0,108940.0,1.41207978]
[1748288983567,0.22028375,108950.0,108940.0,1.43043757]
[1748288984239,0.22028375,108950.0,108940.0,1.43961634]
[1748288985479,0.02753479,108950.0,108940.0,1.43961634]
[1748288985694,0.21110523,108950.0,108940.0,1.43961634]
[1748288987636,0.02753479,108950.0,108940.0,1.43961634]
[1748288987843,0.21110523,108950.0,108940.0,1.43043757]
[1748288988045,0.22028375,108950.0,108940.0,1.43043757]
[1748288989331,0.22028375,108950.0,108940.0,1.41207987]
[1748288989549,0.22028375,108950.0,108940.0,1.43043783]
[1748288989966,0.22028375,108950.0,108940.0,1.43961668]
[1748288990386,0.02753471,108950.0,108940.0,1.43961617]
[1748288990605,0.21110515,108950.0,108940.0,1.43961617]
[1748288990837,0.22028358,108950.0,108940.0,1.43961617]
[1748288991241,0.03671314,108950.0,108940.0,1.43961617]
[1748288991446,0.22028358,108950.0,108940.0,1.43961617]
[1748288992168,0.2294621,108950.0,108940.0,1.43961617]
[1748288993190,0.04589166,108950.0,108940.0,1.43961617]
[1748288993512,0.2294621,108950.0,108940.0,1.43961617]
[1748288993714,0.03671314,108950.0,108940.0,1.43961617]
[1748288994323,0.01835636,108950.0,108940.0,1.43961617]
[1748288994517,0.02753471,108950.0,108940.0,1.43961617]
[1748288995052,0.03671314,108950.0,108940.0,1.43961617]
[1748288997411,0.22028358,108950.0,108940.0,1.43961617]
[1748288998974,0.02753471,108950.0,108940.0,1.43961617]
[1748288999184,0.02753429,108950.0,108940.0,1.43961617]
[1748289000008,0.01835594,108950.0,108940.0,1.43961617]
[1748289000422,0.02753429,108950.0,108940.0,1.43961617]
[1748289000637,0.0275342,108950.0,108940.0,1.43961617]
[1748289000844,0.03671255,108950.0,108940.0,1.43961617]
[1748289001858,0.0275342,108950.0,108940.0,1.43961617]
[1748289002178,0.03671255,108950.0,108940.0,1.43961617]
[1748289004410,0.00917784,108950.0,108940.0,1.43961617]
[1748289004645,0.01835585,108950.0,108940.0,1.43961617]
[1748289005484,0.49155198,108970.0,108940.0,1.39372148]
[1748289005754,0.59960036,108970.0,108960.0,1.28586515]
[1748289005979,0.76206036,108970.0,108960.0,1.41970304]
[1748289006589,0.76206036,108970.0,108960.0,1.77812756]
[1748289006783,0.61530036,108970.0,108960.0,1.77812756]
[1748289007022,0.76206036,108970.0,108960.0,1.22697178]
[1748289007630,0.62130036,108970.0,108960.0,1.22697178]
[1748289007843,0.76806036,108970.0,108960.0,1.41970304]
[1748289008375,0.60560036,108970.0,108960.0,1.42888046]
[1748289008591,0.75236036,108970.0,108960.0,1.98003624]
[1748289011307,0.00614941,108970.0,108960.0,2.53741169]
[1748289011726,0.00314941,108970.0,108960.0,2.53741169]
[1748289011945,0.00014941,108970.0,108960.0,2.53741169]
[1748289012158,0.00014941,108970.0,108960.0,2.5677001]
[1748289012562,0.00014941,108970.0,108960.0,2.5667001]
[1748289012778,0.03234581,108990.0,108980.0,0.25668772]
[1748289012995,0.03234581,108990.0,108980.0,2.03481528]
[1748289014923,0.03234581,108990.0,108980.0,2.03581528]
[1748289015119,0.04152037,108990.0,108980.0,2.04488602]
[1748289015374,0.03234581,108990.0,108980.0,1.49373024]
[1748289016031,0.03334581,108990.0,108980.0,1.49373024]
[1748289016869,0.04252029,108990.0,108980.0,1.49373024]
[1748289017416,0.01017448,108990.0,108980.0,1.49373024]
[1748289018741,0.01017448,108990.0,108980.0,2.04488602]
[1748289019346,0.001,108990.0,108980.0,2.04488602]
[1748289019993,0.001,108990.0,108980.0,2.38488602]
[1748289022415,0.001,108990.0,108980.0,2.53160602]
[1748289024770,0.001,108990.0,108980.0,2.62115158]
[1748289024965,0.20192199,109010.0,109000.0,1.30414615]
[1748289025190,0.20207151,109010.0,109000.0,1.97996215]
[1748289025403,0.20207151,109010.0,109000.0,1.98913612]
[1748289025820,0.20207151,109010.0,109000.0,1.99831001]
[1748289026022,0.20207151,109010.0,109000.0,2.00923447]